Workbook

Sheet Read Me
C8: This workbook embodies a certain SFEcon theory of economic adjustment
C9: explicated at:
C11: www.sfecon.com
C14: The workbook is written Excel 2013.
C15: It contains VBasic programs that will alert anti-virus software.
C16: Upon opening the workbook, ‘editing’ and ‘content’ must be ‘enabled’
C17: when your security settings offer those options.
C19: Essentially the same workbook is also available in Excel 2003.
C20: It can be downloaded from the EXEMPLARS page at sfecon.com.
C23: The theory exercised here is challenging. Understanding what this program
C24: does requires access to the companion.pdf available at:
C26: http://www.sfecon.com/Economic%20Calculation.pdf
C30: If tutoring is required, please contact:
C32: inquiries@sfecon.com

Sheet GPE
H7: General Price Equilibrium
F10: VALUE | G10: CAPITAL | H10: GENERAL | I10: NON_DUR | J10: BOURGS | K10: PRLTRT
M11: + XPT;
F12: =F37/F$26 -> 0 | G12: 0 | H12: 0 | I12: 0 | J12: 0 | K12: 0 | M12: - MPT
D13: r | E13: R | F13: 0 | G13: 1 | H13: 2 | I13: 3 | J13: L | K13: N
C14: VALUE | D14: =-F37 -> 0 | E14: 0 | F14: =F39/F$26 -> 309552.4676 | G14: =-G12-SUM(G15:G19) -> -100 | H14: =-H12-SUM(H15:H19) -> -750 | I14: =-I12-SUM(I15:I19) -> -3200 | J14: =-J12-SUM(J15:J19) -> -876 | K14: =-K12-SUM(K15:K19) -> -8766 | L14: 0 | M14: VALUE
C15: CAPITAL | D15: =G39-F40 -> -16991.26862 | E15: 1 | F15: -84956.36248 | G15: 30 | H15: 200 | I15: 800 | J15: 20 | K15: 600 | L15: 1 | M15: CAPITAL
C16: GENERAL | D16: =H39-F41 -> -14578.35223 | E16: 2 | F16: -72891.77802 | G16: 25 | H16: 100 | I16: 700 | J16: 30 | K16: 600 | L16: 2 | M16: GENERAL | O16: Experimenters are invited to change
C17: NON_DUR | D17: =I39-F42 -> -13347.81037 | E17: 3 | F17: -66739.0777 | G17: 20 | H17: 150 | I17: 500 | J17: 26 | K17: 600 | L17: 3 | M17: NON_DUR | O17: any data set in red type that
C18: BOURGS | D18: =J39-F43 -> 40425.70948 | E18: L | F18: -62719.38856 | G18: 20 | H18: 200 | I18: 900 | J18: 800 | K18: 200 | L18: L | M18: BOURGS | O18: appears within the marquee.
C19: PRLTRT | D19: =K39-F44 -> 4491.721738 | E19: N | F19: -22245.86087 | G19: 5 | H19: 100 | I19: 300 | J19: 0 | K19: 6766 | L19: N | M19: PRLTRT
F20: 0 | G20: 1 | H20: 2 | I20: 3 | J20: L | K20: N
F23: VALUE | G23: CAPITAL | H23: GENERAL | I23: NON_DUR | J23: BOURGS | K23: PRLTRT
D25: Interest rate | F25: 0 | G25: 1 | H25: 2 | I25: 3 | J25: L | K25: N
D26: 0.1 | E26: P | F26: 2 | G26: 1869.039936 | H26: 213.8158777 | I26: 45.8831143 | J26: 1118.592995 | K26: 20 | M26: Prices
J28: Investment Fractions
J29: 0.9 | K29: =1-J29 -> 0.1
J30: L | K30: N
F35: VALUE | G35: CAPITAL | H35: GENERAL | I35: NON_DUR | J35: BOURGS | K35: PRLTRT
M36: + XPT;
F37: =-SUM(G37:K37) -> 0 | G37: =G$26*G12 -> 0 | H37: =H$26*H12 -> 0 | I37: =I$26*I12 -> 0 | J37: =J$26*J12 -> 0 | K37: =K$26*K12 -> 0 | M37: - MPT
E38: PR | F38: 0 | G38: 1 | H38: 2 | I38: 3 | J38: L | K38: N
E39: 0 | F39: =-F37-SUM(F40:F44) -> 619104.9353 | G39: -186903.9936 | H39: -160361.9083 | I39: -146825.9658 | J39: -85013.06765 | K39: -40000 | L39: 0 | M39: VALUE
C40: % return > | D40: =D15/F40 -> 0.0999999772 | E40: 1 | F40: =-SUM(G40:K40) -> -169912.725 | G40: =G$26*G15 -> 56071.19807 | H40: 42763.17554 | I40: 36706.49144 | J40: 22371.85991 | K40: 12000 | L40: 1 | M40: CAPITAL
C41: on asset | D41: =D16/F41 -> 0.09999997685 | E41: 2 | F41: =-SUM(G41:K41) -> -145783.556 | G41: 46725.9984 | H41: 21381.58777 | I41: 32118.18001 | J41: 33557.78986 | K41: 12000 | L41: 2 | M41: GENERAL
C42: turnover | D42: =D17/F42 -> 0.09999996125 | E42: 3 | F42: =-SUM(G42:K42) -> -133478.1554 | G42: 37380.79872 | H42: 32072.38165 | I42: 22941.55715 | J42: 29083.41788 | K42: 12000 | L42: 3 | M42: NON_DUR
E43: L | F43: =-SUM(G43:K43) -> -125438.7771 | G43: =G$26*G18 -> 37380.79872 | H43: 42763.17554 | I43: 41294.80287 | K43: =K$26*K18 -> 4000 | L43: L | M43: BOURGS
E44: N | F44: =-SUM(G44:K44) -> -44491.72174 | G44: 9345.199679 | H44: 21381.58777 | I44: 13764.93429 | J44: =J$26*J19 -> 0 | L44: N | M44: PRLTRT
F45: 0 | G45: 1 | H45: 2 | I45: 3 | J45: L | K45: N
F47: VALUE | G47: CAPITAL | H47: GENERAL | I47: NON_DUR | J47: BOURGS | K47: PRLTRT

Sheet Utility
H7: Sectors' Production and Utility Tradeoffs, physical units/year
F10: VALUE | G10: CAPITAL | H10: GENERAL | I10: NON_DUR | J10: BOURGS | K10: PRLTRT
E12: E | F12: 0 | G12: 1 | H12: 2 | I12: 3 | J12: L | K12: N
C13: VALUE | E13: 0 | F13: 309552.4676 | G13: -100 | H13: -750 | I13: -3200 | J13: -876 | K13: -8766 | L13: 0 | M13: VALUE
C14: CAPITAL | E14: 1 | G14: 30 | H14: 200 | I14: 800 | J14: 20 | K14: 600 | L14: 1 | M14: CAPITAL
C15: GENERAL | E15: 2 | G15: 25 | H15: 100 | I15: 700 | J15: 30 | K15: 600 | L15: 2 | M15: GENERAL
C16: NON_DUR | E16: 3 | G16: 20 | H16: 150 | I16: 500 | J16: 26 | K16: 600 | L16: 3 | M16: NON_DUR
C17: BOURGS | E17: L | G17: 20 | H17: 200 | I17: 900 | J17: 800 | K17: 200 | L17: L | M17: BOURGS
C18: PRLTRT | E18: N | G18: 5 | H18: 100 | I18: 300 | J18: 0 | K18: 6766 | L18: N | M18: PRLTRT
F19: 0 | G19: 1 | H19: 2 | I19: 3 | J19: L | K19: N
F21: VALUE | G21: CAPITAL | H21: GENERAL | I21: NON_DUR | J21: BOURGS | K21: PRLTRT
F24: 0 | G24: 1 | H24: 2 | I24: 3 | J24: L | K24: N
E25: P | F25: =GPE!F26 -> 2 | G25: =GPE!G26 -> 1869.039936 | H25: =GPE!H26 -> 213.8158777 | I25: =GPE!I26 -> 45.8831143 | J25: =GPE!J26 -> 1118.592995 | K25: =GPE!K26 -> 20
F26: VALUE | G26: CAPITAL | H26: GENERAL | I26: NON_DUR | J26: BOURGS | K26: PRLTRT
F33: VALUE | G33: CAPITAL | H33: GENERAL | I33: NON_DUR | J33: BOURGS | K33: PRLTRT
G35: =-SUM(G37:G42) -> -2265.721962 | H35: =-SUM(H37:H42) -> -19015.50142 | I35: =-SUM(I37:I42) -> -86639.00528 | J35: =-SUM(J37:J42) -> -2606.621384 | K35: =-SUM(K37:K42) -> -150902.0274
D36: z | E36: U | F36: 0 | G36: 1 | H36: 2 | I36: 3 | J36: L | K36: N
C37: VALUE | D37: 0 | E37: 0 | F37: =-F13-(G25*(G37+G13)+H25*(H37+H13)+I25*(I37+I13)+J25*(J41+J17)+K25*(K42+K18))/F25 -> -1747827.277 | G37: =IF(G13<0,D38/G25-G13,0) -> 709.0221284 | H37: =IF(H13<0,D39/H25-H13,0) -> 5283.704347 | I37: =IF(I13<0,D40/I25-I13,0) -> 22353.65259 | J37: =-J13 -> 876 | K37: =-K13 -> 8766 | L37: 0 | M37: VALUE
C38: CAPITAL | D38: 1138286.68 | E38: 1 | G38: =IF(G14>0,$D38/G$25-G14,0) -> 579.0221284 | H38: 5123.677045 | I38: 24008.40059 | J38: 997.6057642 | K38: 56314.33399 | L38: 1 | M38: CAPITAL
C39: GENERAL | D39: 969377.9742 | E39: 2 | G39: 493.6502202 | H39: 4433.704347 | I39: 20427.11809 | J39: 836.6047242 | K39: 47868.89871 | L39: 2 | M39: GENERAL
C40: NON_DUR | D40: 878829.2311 | E40: 3 | G40: 450.2035597 | H40: 3960.215016 | I40: 18653.65259 | J40: 759.6559399 | K40: 43341.46156 | L40: 3 | M40: NON_DUR
C41: BOURGS | D41: 70745.46403 | E41: L | G41: =IF(G17>0,$D41/G$25-G17,0) -> 17.85123189 | H41: 130.8709568 | I41: 641.8627332 | J41: =IF(J17>0,-$D41/J$25-J17,0) -> -863.2450447 | K41: =IF(K17>0,$D41/K$25-K17,0) -> 3337.273201 | L41: L | M41: BOURGS
C42: PRLTRT | D42: 39198.80205 | E42: N | G42: 15.97269368 | H42: 83.32970625 | I42: 554.3186888 | J42: =IF(J18>0,$D42/J$25-J18,0) -> 0 | K42: =IF(K18>0,-$D42/K$25-K18,0) -> -8725.940102 | L42: N | M42: PRLTRT
F43: 0 | G43: 1 | H43: 2 | I43: 3 | J43: L | K43: N
F45: VALUE | G45: CAPITAL | H45: GENERAL | I45: NON_DUR | J45: BOURGS | K45: PRLTRT
F58: VALUE | G58: CAPITAL | H58: GENERAL | I58: NON_DUR | J58: BOURGS | K58: PRLTRT
D61: h | E61: H | F61: 0 | G61: 1 | H61: 2 | I61: 3 | J61: L | K61: N
E62: 0 | G62: =SIGN(G37) -> 1 | H62: 1 | I62: 1 | J62: 0 | K62: 0 | L62: 0
C63: CAPITAL | D63: =G62-F63 -> 6 | E63: 1 | F63: =-SUM(G63:K63) -> -5 | G63: 1 | H63: 1 | I63: 1 | J63: =SIGN(J38) -> 1 | K63: 1 | L63: 1 | M63: CAPITAL
C64: GENERAL | D64: =H62-F64 -> 6 | E64: 2 | F64: =-SUM(G64:K64) -> -5 | G64: 1 | H64: 1 | I64: 1 | J64: 1 | K64: 1 | L64: 2 | M64: GENERAL
C65: NON_DUR | D65: =I62-F65 -> 6 | E65: 3 | F65: =-SUM(G65:K65) -> -5 | G65: 1 | H65: 1 | I65: 1 | J65: 1 | K65: 1 | L65: 3 | M65: NON_DUR
C66: BOURGS | D66: =J66-F66 -> 3 | E66: L | F66: =J66-SUM(G66:K66) -> -4 | G66: =SIGN(G41) -> 1 | H66: 1 | I66: 1 | J66: -1 | K66: 1 | L66: L | M66: BOURGS
C67: PRLTRT | D67: =K67-F67 -> 2 | E67: N | F67: =K67-SUM(G67:K67) -> -3 | G67: 1 | H67: 1 | I67: 1 | J67: 0 | K67: -1 | L67: N | M67: PRLTRT
F68: 0 | G68: 1 | H68: 2 | I68: 3 | J68: L | K68: N
F70: VALUE | G70: CAPITAL | H70: GENERAL | I70: NON_DUR | J70: BOURGS | K70: PRLTRT

Sheet IState
I4: Commodities' Turnover Fractions, dimensionless / year
D10: NPV | F10: Investment Term
D11: =(1-D14)^-F11 -> 0.5131581182 | F11: 7 | G11: yrs.
D13: i | F13: (1-1/NPV)/T | H13: VALUE | I13: CAPITAL | J13: GENERAL | K13: NON_DUR | L13: BOURGS | M13: PRLTRT
D14: =-GPE!D26 -> -0.1 | F14: =(1-1/D11)/F11 -> -0.1355310143 | G14: V | H14: 1 | I14: 0.1 | J14: 0.3333333333 | K14: 1 | L14: 1 | M14: 1
H15: 0 | I15: 1 | J15: 2 | K15: 3 | L15: L | M15: N
H23: VALUE | I23: CAPITAL | J23: GENERAL | K23: NON_DUR | L23: BOURGS | M23: PRLTRT | N23: + XPT;
H24: 0 | I24: 0 | J24: 0 | K24: 0 | L24: 0 | M24: 0 | N24: - MPT
D25: e - | F25: e + | G25: E | H25: 0 | I25: 1 | J25: 2 | K25: 3 | L25: L | M25: N
B26: VALUE | C26: 0 | G26: 0 | H26: =GPE!F14 -> 309552.4676 | I26: =GPE!G14 -> -100 | J26: =GPE!H14 -> -750 | K26: =GPE!I14 -> -3200 | L26: =GPE!J14 -> -876 | M26: =GPE!K14 -> -8766 | N26: 0
B27: CAPITAL | C27: 1 | D27: =GPE!D15 -> -16991.26862 | G27: 1 | H27: =GPE!F15 -> -84956.36248 | I27: =GPE!G15 -> 30 | J27: =GPE!H15 -> 200 | K27: =GPE!I15 -> 800 | L27: =GPE!J15 -> 20 | M27: =GPE!K15 -> 600 | N27: 1
B28: GENERAL | C28: 2 | D28: =GPE!D16 -> -14578.35223 | G28: 2 | H28: =GPE!F16 -> -72891.77802 | I28: =GPE!G16 -> 25 | J28: =GPE!H16 -> 100 | K28: =GPE!I16 -> 700 | L28: =GPE!J16 -> 30 | M28: =GPE!K16 -> 600 | N28: 2
B29: NON_DUR | C29: 3 | D29: =GPE!D17 -> -13347.81037 | G29: 3 | H29: =GPE!F17 -> -66739.0777 | I29: =GPE!G17 -> 20 | J29: =GPE!H17 -> 150 | K29: =GPE!I17 -> 500 | L29: =GPE!J17 -> 26 | M29: =GPE!K17 -> 600 | N29: 3
B30: BOURGS | C30: L | F30: =GPE!D18 -> 40425.70948 | G30: L | H30: =GPE!F18 -> -62719.38856 | I30: =GPE!G18 -> 20 | J30: =GPE!H18 -> 200 | K30: =GPE!I18 -> 900 | L30: =GPE!J18 -> 800 | M30: =GPE!K18 -> 200 | N30: L
B31: PRLTRT | C31: N | F31: =GPE!D19 -> 4491.721738 | G31: N | H31: =GPE!F19 -> -22245.86087 | I31: =GPE!G19 -> 5 | J31: =GPE!H19 -> 100 | K31: =GPE!I19 -> 300 | L31: =GPE!J19 -> 0 | M31: =GPE!K19 -> 6766 | N31: N
H32: 0 | I32: 1 | J32: 2 | K32: 3 | L32: L | M32: N
H33: VALUE | I33: CAPITAL | J33: GENERAL | K33: NON_DUR | L33: BOURGS | M33: PRLTRT
H38: =H24/H$14/3 -> 0 | I38: 0 | J38: 0 | K38: 0 | L38: 0 | M38: 0
G39: A | H39: 0 | I39: 1 | J39: 2 | K39: 3 | L39: L | M39: N
C40: 0 | G40: 0 | H40: =H26/H$14/3 -> 103184.1559 | I40: -333.3333333 | J40: -750 | K40: -1066.666667 | L40: -292 | M40: -2922 | N40: 0
C41: 1 | D41: =D27/D14 -> 169912.6862 | G41: 1 | H41: -28318.78749 | I41: 100 | J41: 200 | K41: 266.6666667 | L41: 6.666666667 | M41: 200 | N41: 1
C42: 2 | D42: =D28/D14 -> 145783.5223 | G42: 2 | H42: -24297.25934 | I42: 83.33333333 | J42: 100 | K42: 233.3333333 | L42: 10 | M42: 200 | N42: 2
C43: 3 | D43: =D29/D14 -> 133478.1037 | G43: 3 | H43: -22246.35923 | I43: 66.66666667 | J43: 150 | K43: 166.6666667 | L43: 8.666666667 | M43: 200 | N43: 3
C44: L | F44: =F30/F14/3 -> -99425.48253 | G44: L | H44: -20906.46285 | I44: 66.66666667 | J44: 200 | K44: 300 | L44: 266.6666667 | M44: 66.66666667 | N44: L
C45: N | F45: =F31/F14/3 -> -11047.2174 | G45: N | H45: -7415.286956 | I45: 16.66666667 | J45: 100 | K45: 100 | L45: 0 | M45: 2255.333333 | N45: N
H48: =H38 -> 0 | I48: 0 | J48: 0 | K48: 0 | L48: 0 | M48: 0
G49: B | H49: 0 | I49: 1 | J49: 2 | K49: 3 | L49: L | M49: N
G50: 0 | H50: =H40 -> 103184.1559 | I50: -333.3333333 | J50: -750 | K50: -1066.666667 | L50: -292 | M50: -2922 | N50: 0
G51: 1 | H51: -28318.78749 | I51: 100 | J51: 200 | K51: 266.6666667 | L51: 6.666666667 | M51: 200 | N51: 1
G52: 2 | H52: -24297.25934 | I52: 83.33333333 | J52: 100 | K52: 233.3333333 | L52: 10 | M52: 200 | N52: 2
G53: 3 | H53: -22246.35923 | I53: 66.66666667 | J53: 150 | K53: 166.6666667 | L53: 8.666666667 | M53: 200 | N53: 3
F54: =F44 -> -99425.48253 | G54: L | H54: -20906.46285 | I54: 66.66666667 | J54: 200 | K54: 300 | L54: 266.6666667 | M54: 66.66666667 | N54: L
F55: =F45 -> -11047.2174 | G55: N | H55: -7415.286956 | I55: 16.66666667 | J55: 100 | K55: 100 | L55: 0 | M55: 2255.333333 | N55: N
H58: =H48 -> 0 | I58: 0 | J58: 0 | K58: 0 | L58: 0 | M58: 0
G59: C | H59: 0 | I59: 1 | J59: 2 | K59: 3 | L59: L | M59: N
G60: 0 | H60: =H50 -> 103184.1559 | I60: -333.3333333 | J60: -750 | K60: -1066.666667 | L60: -292 | M60: -2922 | N60: 0
G61: 1 | H61: -28318.78749 | I61: 100 | J61: 200 | K61: 266.6666667 | L61: 6.666666667 | M61: 200 | N61: 1
G62: 2 | H62: -24297.25934 | I62: 83.33333333 | J62: 100 | K62: 233.3333333 | L62: 10 | M62: 200 | N62: 2
G63: 3 | H63: -22246.35923 | I63: 66.66666667 | J63: 150 | K63: 166.6666667 | L63: 8.666666667 | M63: 200 | N63: 3
F64: =F54 -> -99425.48253 | G64: L | H64: -20906.46285 | I64: 66.66666667 | J64: 200 | K64: 300 | L64: 266.6666667 | M64: 66.66666667 | N64: L
F65: =F55 -> -11047.2174 | G65: N | H65: -7415.286956 | I65: 16.66666667 | J65: 100 | K65: 100 | L65: 0 | M65: 2255.333333 | N65: N
L68: =Utility!J41/L14 -> -863.2450447 | M68: =Utility!K42/M14 -> -8725.940102

Sheet Econ 1
O4: TIME | P4: =Global!N3 -> 50.01
O6: SIMULATE UNTIL | P6: =Global!N5 -> 100
P7: (YRS)
D9: INTEREST | E9: 0.1
D10: RATE | E10: 0.09997796948 | F10: -i | I10: Economy #1:
R11: State Variables:
D12: INVESTMENT | E12: 6.75219135
D13: TERM | E13: (YRS)
G14: VALUE | H14: CAPITAL | I14: GENERAL | J14: NON_DUR | K14: BOURGS | L14: PRLTRT | R14: Investment | T14: Saving | V14: VALUE | W14: CAPITAL | X14: GENERAL | Y14: NON_DUR | Z14: BOURGS | AA14: PRLTRT
B15: Physical I/O:
G16: 0.0006548670181 | H16: 0.2166242735 | I16: -31.36659265 | J16: 109.768971 | K16: 0.7197647861 | L16: 22.08520567 | M16: + XPT / - MPT | V16: 0.0002391893298 | W16: 0.7220809109 | X16: -31.36658744 | Y16: 36.58965521 | Z16: 0.2399216304 | AA16: 7.361729547
E17: r | F17: R | G17: 0 | H17: 1 | I17: 2 | J17: 3 | K17: L | L17: N | R17: k | T17: g | U17: A | V17: 0 | W17: 1 | X17: 2 | Y17: 3 | Z17: L | AA17: N
D18: ( - ) OUTPUT | E18: -0.001322946424 | F18: 0 | G18: 308548.1594 | H18: -100.041654 | I18: -743.4401502 | J18: -3220.694554 | K18: -876 | L18: -8766 | M18: 0 | N18: OUTPUT ( - ) | R18: -452125.9622 | T18: 0 | U18: 0 | V18: 102849.3865 | W18: -333.4718446 | X18: -743.4400079 | Y18: -1073.564791 | Z18: -292 | AA18: -2922 | AB18: 0
D19: CAPITAL | E19: -17151.65343 | F19: 1 | G19: -84764.80893 | H19: 29.95817818 | I19: 209.3164257 | J19: 768.1718078 | K19: 19.8157793 | L19: 591.6723271 | M19: 1 | N19: CAPITAL | R19: 171556.1308 | T19: 0 | U19: 1 | V19: -28254.93713 | W19: 99.8604533 | X19: 209.3163862 | Y19: 256.0572626 | Z19: 6.60526195 | AA19: 197.2241523 | AB19: 1 | AC19: CAPITAL
D20: GENERAL | E20: -14393.31796 | F20: 2 | G20: -72010.36045 | H20: 24.80734655 | I20: 106.5591764 | J20: 666.5053715 | K20: 29.58067565 | L20: 578.2317995 | M20: 2 | N20: GENERAL | R20: 143966.3839 | T20: 0 | U20: 2 | V20: -24003.45404 | W20: 82.69104087 | X20: 106.5592119 | Y20: 222.1684487 | Z20: 9.860225911 | AA20: 192.7439426 | AB20: 2 | AC20: GENERAL
D21: NON_DUR | E21: -13657.19734 | F21: 3 | G21: -67030.47964 | H21: 20.06295861 | I21: 158.0268494 | J21: 479.3019424 | K21: 26.01681119 | L21: 602.4662426 | M21: 3 | N21: NON_DUR | R21: 136603.4475 | T21: 0 | U21: 3 | V21: -22343.49348 | W21: 66.87646139 | X21: 158.0268189 | Y21: 159.7673203 | Z21: 8.672271078 | AA21: 200.8220627 | AB21: 3 | AC21: NON_DUR
D22: BOURGS | E22: 40547.49634 | F22: L | G22: -62549.47181 | H22: 19.99558164 | I22: 200.5627977 | J22: 897.9457595 | K22: 799.8669691 | L22: 199.3185228 | M22: L | N22: BOURGS | R22: 0 | T22: -101068.891 | U22: L | V22: -20849.82315 | W22: 66.65190642 | X22: 200.5627368 | Y22: 299.315215 | Z22: 266.6223194 | AA22: 66.43959304 | AB22: L | AC22: BOURGS
D23: PRLTRT | E23: 4654.673706 | F23: N | G23: -22193.03926 | H23: 5.00096475 | I23: 100.3414937 | J23: 299.0007021 | K23: 0 | L23: 6772.225902 | M23: N | N23: PRLTRT | R23: 0 | T23: -11602.59506 | U23: N | V23: -7397.6789 | W23: 16.66990172 | X23: 100.3414415 | Y23: 99.66688884 | Z23: 0 | AA23: 2257.40852 | AB23: N | AC23: PRLTRT
G24: 0 | H24: 1 | I24: 2 | J24: 3 | K24: L | L24: N | V24: 0 | W24: 1 | X24: 2 | Y24: 3 | Z24: L | AA24: N
G26: VALUE | H26: CAPITAL | I26: GENERAL | J26: NON_DUR | K26: BOURGS | L26: PRLTRT | V26: VALUE | W26: CAPITAL | X26: GENERAL | Y26: NON_DUR | Z26: BOURGS | AA26: PRLTRT
B28: Prices & Values: | G28: 2 | H28: 1869.040976 | I28: 213.8159976 | J28: 45.88314043 | K28: 1118.593743 | L28: 20
G29: 2.020175747 | H29: 1883.132243 | I29: 215.0369185 | J29: 46.28527661 | K29: 1127.153881 | L29: 20.15236335 | M29: < Prices | V29: 0.0002629788672 | W29: 0.7220827482 | X29: -31.36658173 | Y29: 36.58965326 | Z29: 0.2399216679 | AA29: 7.361723397
E30: c | G30: 0 | H30: 1 | I30: 2 | J30: 3 | K30: L | L30: N | U30: B | V30: 0 | W30: 1 | X30: 2 | Y30: 3 | Z30: L | AA30: N
D31: MCP | E31: 1 | F31: 0 | G31: 2.020174784 | H31: 1883.131878 | I31: 215.0368722 | J31: 46.28526444 | K31: 0 | L31: 0 | M31: 0 | N31: MCP | T31: 0 | U31: 0 | V31: 102849.3865 | W31: -333.471222 | X31: -743.4398412 | Y31: -1073.564725 | Z31: -292 | AA31: -2922 | AB31: 0
D32: CAPITAL | E32: 1.000000017 | F32: 1 | G32: 2.020175873 | H32: 1883.132397 | I32: 215.0369302 | J32: 46.28527814 | K32: 1127.153786 | L32: 20.15236385 | M32: 1 | N32: CAPITAL | S32: CAPITAL | T32: 0 | U32: 1 | V32: -28254.93802 | W32: 99.86019217 | X32: 209.3163401 | Y32: 256.0572553 | Z32: 6.605264308 | AA32: 197.2241989 | AB32: 1 | AC32: CAPITAL
D33: GENERAL | E33: 0.9999999929 | F33: 2 | G33: 2.020175829 | H33: 1883.132342 | I33: 215.0369041 | J33: 46.28527734 | K33: 1127.153854 | L33: 20.15236407 | M33: 2 | N33: GENERAL | S33: GENERAL | T33: 0 | U33: 2 | V33: -24003.45465 | W33: 82.69082689 | X33: 106.5592535 | Y33: 222.1684396 | Z33: 9.86022666 | AA33: 192.7439527 | AB33: 2 | AC33: GENERAL
D34: NON_DUR | E34: 0.9999999455 | F34: 3 | G34: 2.020175746 | H34: 1883.132198 | I34: 215.0369141 | J34: 46.28527292 | K34: 1127.153794 | L34: 20.15236386 | M34: 3 | N34: NON_DUR | S34: NON_DUR | T34: 0 | U34: 3 | V34: -22343.49378 | W34: 66.87633667 | X34: 158.0267833 | Y34: 159.7673269 | Z34: 8.672271813 | AA34: 200.8220432 | AB34: 3 | AC34: NON_DUR
D35: BOURGS | E35: 1.000000183 | F35: L | G35: 2.020178652 | H35: 1883.133368 | I35: 215.0372328 | J35: 46.28536456 | K35: 1127.151217 | L35: 20.1523396 | M35: L | N35: BOURGS | S35: BOURGS | T35: -101068.6566 | U35: L | V35: -20849.82229 | W35: 66.6518466 | X35: 200.5626655 | Y35: 299.3151738 | Z35: 266.6223156 | AA35: 66.43968525 | AB35: L | AC35: BOURGS
D36: PRLTRT | E36: 1.000002215 | F36: N | G36: 2.020182873 | H36: 1883.135293 | I36: 215.0377219 | J36: 46.28540828 | K36: 0 | L36: 20.15236902 | M36: N | N36: PRLTRT | S36: PRLTRT | T36: -11602.49644 | U36: N | V36: -7397.677978 | W36: 16.66993691 | X36: 100.3413806 | Y36: 99.66687604 | Z36: 0 | AA36: 2257.408397 | AB36: N | AC36: PRLTRT
G37: 0 | H37: 1 | I37: 2 | J37: 3 | K37: L | L37: N | V37: 0 | W37: 1 | X37: 2 | Y37: 3 | Z37: L | AA37: N
G39: VALUE | H39: CAPITAL | I39: GENERAL | J39: NON_DUR | K39: BOURGS | L39: PRLTRT | V39: VALUE | W39: CAPITAL | X39: GENERAL | Y39: NON_DUR | Z39: BOURGS | AA39: PRLTRT
B40: Utility Parameters:
G42: 9080861.883 | H42: -2265.721962 | I42: -19015.50142 | J42: -86639.00528 | K42: -2606.768726 | L42: -150895.861 | V42: 0.0002893059408 | W42: 0.722091888 | X42: -31.36657559 | Y42: 36.58965124 | Z42: 0.2399217071 | AA42: 7.361716926
E43: u | F43: U | G43: 0 | H43: 1 | I43: 2 | J43: 3 | K43: L | L43: N | U43: C | V43: 0 | W43: 1 | X43: 2 | Y43: 3 | Z43: L | AA43: N
E44: -18344936.94 | F44: 0 | G44: -1743038.862 | H44: 709.0221284 | I44: 5283.704347 | J44: 22353.65259 | K44: 876 | L44: 8766 | M44: 0 | T44: 0 | U44: 0 | V44: 102849.3864 | W44: -333.4700677 | X44: -743.4396477 | Y44: -1073.564656 | Z44: -292 | AA44: -2922 | AB44: 0
D45: CAPITAL | E45: 6897894.984 | F45: 1 | G45: -2753578.525 | H45: 579.0221284 | I45: 5123.677045 | J45: 24008.40059 | K45: 997.6057642 | L45: 56314.33399 | M45: 1 | N45: CAPITAL | S45: CAPITAL | T45: 0 | U45: 1 | V45: -28254.93895 | W45: 99.85970731 | X45: 209.3162867 | Y45: 256.0572477 | Z45: 6.605266779 | AA45: 197.2242478 | AB45: 1 | AC45: CAPITAL
D46: GENERAL | E46: 5872338.78 | F46: 2 | G46: -2344423.393 | H46: 493.6502202 | I46: 4433.704347 | J46: 20427.11809 | K46: 836.6047242 | L46: 47868.89871 | M46: 2 | N46: GENERAL | S46: GENERAL | T46: 0 | U46: 2 | V46: -24003.45529 | W46: 82.69042507 | X46: 106.5593019 | Y46: 222.1684301 | Z46: 9.860227446 | AA46: 192.7439634 | AB46: 2 | AC46: GENERAL
D47: NON_DUR | E47: 5327101.758 | F47: 3 | G47: -2124793.732 | H47: 450.2035597 | I47: 3960.215016 | J47: 18653.65259 | K47: 759.6559399 | L47: 43341.46156 | M47: 3 | N47: NON_DUR | S47: NON_DUR | T47: 0 | U47: 3 | V47: -22343.49408 | W47: 66.87610659 | X47: 158.026742 | Y47: 159.7673339 | Z47: 8.672272584 | AA47: 200.8220226 | AB47: 3 | AC47: NON_DUR
D48: BOURGS | E48: 173263.9294 | F48: L | G48: -78567.94348 | H48: 17.85123189 | I48: 130.8709568 | J48: 641.8627332 | K48: -863.0977019 | L48: 3337.273201 | M48: L | N48: BOURGS | S48: BOURGS | T48: -101068.3164 | U48: L | V48: -20849.8214 | W48: 66.65173629 | X48: 200.5625828 | Y48: 299.3151306 | Z48: 266.6223115 | AA48: 66.43978189 | AB48: L | AC48: BOURGS
D49: PRLTRT | E49: 74337.48642 | F49: N | G49: -36459.42768 | H49: 15.97269368 | I49: 83.32970625 | J49: 554.3186888 | K49: 0 | L49: -8732.106469 | M49: N | N49: PRLTRT | S49: PRLTRT | T49: -11602.3536 | U49: N | V49: -7397.677012 | W49: 16.67000057 | X49: 100.3413099 | Y49: 99.66686263 | Z49: 0 | AA49: 2257.408267 | AB49: N | AC49: PRLTRT
G50: 0 | H50: 1 | I50: 2 | J50: 3 | K50: L | L50: N | V50: 0 | W50: 1 | X50: 2 | Y50: 3 | Z50: L | AA50: N
G52: VALUE | H52: CAPITAL | I52: GENERAL | J52: NON_DUR | K52: BOURGS | L52: PRLTRT | V52: VALUE | W52: CAPITAL | X52: GENERAL | Y52: NON_DUR | Z52: BOURGS | AA52: PRLTRT

Sheet Econ 2
O4: TIME | P4: =Global!N3 -> 50.01
O6: SIMULATE UNTIL | P6: =Global!N5 -> 100
P7: (YRS)
D9: INTEREST | E9: 0.1
D10: RATE | E10: 0.1041046834 | F10: -i | I10: Economy #2:
R11: State Variables:
D12: INVESTMENT | E12: 7.739754159
D13: TERM | E13: (YRS)
G14: VALUE | H14: CAPITAL | I14: GENERAL | J14: NON_DUR | K14: BOURGS | L14: PRLTRT | R14: Investment | T14: Saving | V14: VALUE | W14: CAPITAL | X14: GENERAL | Y14: NON_DUR | Z14: BOURGS | AA14: PRLTRT
B15: Physical I/O:
G16: -0.005673663728 | H16: -1.702600826 | I16: 51.6171569 | J16: 31.68477748 | K16: -5.239762165 | L16: -171.3883755 | M16: + XPT / - MPT | V16: -0.002067347649 | W16: -5.675336074 | X16: 51.61714707 | Y16: 10.56159206 | Z16: -1.746587621 | AA16: -57.1294147
E17: r | F17: R | G17: 0 | H17: 1 | I17: 2 | J17: 3 | K17: L | L17: N | R17: k | T17: g | U17: A | V17: 0 | W17: 1 | X17: 2 | Y17: 3 | Z17: L | AA17: N
D18: ( - ) OUTPUT | E18: 0.01187097298 | F18: 0 | G18: 317452.1891 | H18: -100.041654 | I18: -843.2310234 | J18: -3220.694554 | K18: -876 | L18: -8766 | M18: 0 | N18: OUTPUT ( - ) | R18: -486645.3317 | T18: 0 | U18: 0 | V18: 105817.3965 | W18: -333.4718446 | X18: -843.2308652 | Y18: -1073.564791 | Z18: -292 | AA18: -2922 | AB18: 0
D19: CAPITAL | E19: -17763.97351 | F19: 1 | G19: -84764.80893 | H19: 29.95817818 | I19: 209.3164257 | J19: 768.1718078 | K19: 19.8157793 | L19: 591.6723271 | M19: 1 | N19: CAPITAL | R19: 170637.2601 | T19: 0 | U19: 1 | V19: -28254.93713 | W19: 99.8604533 | X19: 209.3163862 | Y19: 256.0572626 | Z19: 6.60526195 | AA19: 197.2241523 | AB19: 1 | AC19: CAPITAL
D20: GENERAL | E20: -18752.86312 | F20: 2 | G20: -80794.51319 | H20: 26.69203469 | I20: 123.0638515 | J20: 743.1844196 | K20: 32.72941785 | L20: 754.3432717 | M20: 2 | N20: GENERAL | R20: 180136.2856 | T20: 0 | U20: 2 | V20: -26931.50487 | W20: 88.97333504 | X20: 123.0638863 | Y20: 247.7281302 | Z20: 10.90980668 | AA20: 251.4477263 | AB20: 2 | AC20: GENERAL
D21: NON_DUR | E21: -14144.76371 | F21: 3 | G21: -67030.47964 | H21: 20.06295861 | I21: 158.0268494 | J21: 479.3019424 | K21: 26.01681119 | L21: 602.4662426 | M21: 3 | N21: NON_DUR | R21: 135871.786 | T21: 0 | U21: 3 | V21: -22343.49348 | W21: 66.87646139 | X21: 158.0268189 | Y21: 159.7673203 | Z21: 8.672271078 | AA21: 200.8220627 | AB21: 3 | AC21: NON_DUR
D22: BOURGS | E22: 45471.19813 | F22: L | G22: -62642.62666 | H22: 20.02056524 | I22: 200.7815853 | J22: 898.9622243 | K22: 802.6777538 | L22: 201.6530733 | M22: L | N22: BOURGS | R22: 0 | T22: -101813.9793 | U22: L | V22: -20880.87477 | W22: 66.73518532 | X22: 200.7815244 | Y22: 299.6540366 | Z22: 267.5592479 | AA22: 67.2177761 | AB22: L | AC22: BOURGS
D23: PRLTRT | E23: 5190.390344 | F23: N | G23: -22219.75501 | H23: 5.010518101 | I23: 100.4251547 | J23: 299.3893828 | K23: 0 | L23: 6787.253461 | M23: N | N23: PRLTRT | R23: 0 | T23: -11622.07368 | U23: N | V23: -7406.58414 | W23: 16.70174565 | X23: 100.4251023 | Y23: 99.79644893 | Z23: 0 | AA23: 2262.417697 | AB23: N | AC23: PRLTRT
G24: 0 | H24: 1 | I24: 2 | J24: 3 | K24: L | L24: N | V24: 0 | W24: 1 | X24: 2 | Y24: 3 | Z24: L | AA24: N
G26: VALUE | H26: CAPITAL | I26: GENERAL | J26: NON_DUR | K26: BOURGS | L26: PRLTRT | V26: VALUE | W26: CAPITAL | X26: GENERAL | Y26: NON_DUR | Z26: BOURGS | AA26: PRLTRT
B28: Prices & Values: | G28: 2 | H28: 1869.040976 | I28: 213.8159976 | J28: 45.88314043 | K28: 1118.593743 | L28: 20
G29: 2.092294076 | H29: 1950.35825 | I29: 222.7135294 | J29: 47.93761641 | K29: 1167.392189 | L29: 20.87178332 | M29: < Prices | V29: -0.00226748523 | W29: -5.675350531 | X29: 51.61713687 | Y29: 10.56159169 | Z29: -1.74658787 | AA29: -57.12936725
E30: c | G30: 0 | H30: 1 | I30: 2 | J30: 3 | K30: L | L30: N | U30: B | V30: 0 | W30: 1 | X30: 2 | Y30: 3 | Z30: L | AA30: N
D31: MCP | E31: 1 | F31: 0 | G31: 2.092293074 | H31: 1950.357916 | I31: 222.7134673 | J31: 47.93760464 | K31: 0 | L31: 0 | M31: 0 | N31: MCP | T31: 0 | U31: 0 | V31: 105817.3966 | W31: -333.471222 | X31: -843.2306808 | Y31: -1073.564725 | Z31: -292 | AA31: -2922 | AB31: 0
D32: CAPITAL | E32: 1.000000039 | F32: 1 | G32: 2.092294253 | H32: 1950.358453 | I32: 222.7135464 | J32: 47.93761905 | K32: 1167.392116 | L32: 20.87178429 | M32: 1 | N32: CAPITAL | S32: CAPITAL | T32: 0 | U32: 1 | V32: -28254.93802 | W32: 99.86019217 | X32: 209.3163401 | Y32: 256.0572553 | Z32: 6.605264308 | AA32: 197.2241989 | AB32: 1 | AC32: CAPITAL
D33: GENERAL | E33: 0.9999999518 | F33: 2 | G33: 2.09229409 | H33: 1950.358267 | I33: 222.7135053 | J33: 47.93761534 | K33: 1167.39211 | L33: 20.8717843 | M33: 2 | N33: GENERAL | S33: GENERAL | T33: 0 | U33: 2 | V33: -26931.50538 | W33: 88.97313762 | X33: 123.0639263 | Y33: 247.7281196 | Z33: 10.90980746 | AA33: 251.4476926 | AB33: 2 | AC33: GENERAL
D34: NON_DUR | E34: 0.9999999628 | F34: 3 | G34: 2.092294111 | H34: 1950.358237 | I34: 222.7135287 | J34: 47.93761341 | K34: 1167.392119 | L34: 20.8717842 | M34: 3 | N34: NON_DUR | S34: NON_DUR | T34: 0 | U34: 3 | V34: -22343.49378 | W34: 66.87633667 | X34: 158.0267833 | Y34: 159.7673269 | Z34: 8.672271813 | AA34: 200.8220432 | AB34: 3 | AC34: NON_DUR
D35: BOURGS | E35: 1.000000123 | F35: L | G35: 2.092296831 | H35: 1950.359177 | I35: 222.7138276 | J35: 47.93770164 | K35: 1167.389285 | L35: 20.87175639 | M35: L | N35: BOURGS | S35: BOURGS | T35: -101813.7162 | U35: L | V35: -20880.87392 | W35: 66.73512625 | X35: 200.7814532 | Y35: 299.6539954 | Z35: 267.5592443 | AA35: 67.21786782 | AB35: L | AC35: BOURGS
D36: PRLTRT | E36: 1.000002343 | F36: N | G36: 2.092301724 | H36: 1950.361657 | I36: 222.7143896 | J36: 47.93775889 | K36: 0 | L36: 20.87179179 | M36: N | N36: PRLTRT | S36: PRLTRT | T36: -11621.9586 | U36: N | V36: -7406.583209 | W36: 16.70177981 | X36: 100.425041 | Y36: 99.79643599 | Z36: 0 | AA36: 2262.417565 | AB36: N | AC36: PRLTRT
G37: 0 | H37: 1 | I37: 2 | J37: 3 | K37: L | L37: N | V37: 0 | W37: 1 | X37: 2 | Y37: 3 | Z37: L | AA37: N
G39: VALUE | H39: CAPITAL | I39: GENERAL | J39: NON_DUR | K39: BOURGS | L39: PRLTRT | V39: VALUE | W39: CAPITAL | X39: GENERAL | Y39: NON_DUR | Z39: BOURGS | AA39: PRLTRT
B40: Utility Parameters:
G42: 9091490.559 | H42: -2265.721962 | I42: -19131.79707 | J42: -86639.00528 | K42: -2603.916201 | L42: -150879.9407 | V42: -0.002488606676 | W42: -5.675422497 | X42: 51.61712674 | Y42: 10.56159141 | Z42: -1.746588129 | AA42: -57.12931731
E43: u | F43: U | G43: 0 | H43: 1 | I43: 2 | J43: 3 | K43: L | L43: N | U43: C | V43: 0 | W43: 1 | X43: 2 | Y43: 3 | Z43: L | AA43: N
E44: -19022071.84 | F44: 0 | G44: -1753667.538 | H44: 709.0221284 | I44: 5400 | J44: 22353.65259 | K44: 876 | L44: 8766 | M44: 0 | T44: 0 | U44: 0 | V44: 105817.3967 | W44: -333.4700677 | X44: -843.2304677 | Y44: -1073.564656 | Z44: -292 | AA44: -2922 | AB44: 0
D45: CAPITAL | E45: 7144143.193 | F45: 1 | G45: -2753578.525 | H45: 579.0221284 | I45: 5123.677045 | J45: 24008.40059 | K45: 997.6057642 | L45: 56314.33399 | M45: 1 | N45: CAPITAL | S45: CAPITAL | T45: 0 | U45: 1 | V45: -28254.93895 | W45: 99.85970731 | X45: 209.3162867 | Y45: 256.0572477 | Z45: 6.605266779 | AA45: 197.2242478 | AB45: 1 | AC45: CAPITAL
D46: GENERAL | E46: 6107876.235 | F46: 2 | G46: -2344423.393 | H46: 493.6502202 | I46: 4433.704347 | J46: 20427.11809 | K46: 836.6047242 | L46: 47868.89871 | M46: 2 | N46: GENERAL | S46: GENERAL | T46: 0 | U46: 2 | V46: -26931.5059 | W46: 88.97281636 | X46: 123.0639718 | Y46: 247.7281085 | Z46: 10.90980828 | AA46: 251.4476572 | AB46: 2 | AC46: GENERAL
D47: NON_DUR | E47: 5517274.161 | F47: 3 | G47: -2124793.732 | H47: 450.2035597 | I47: 3960.215016 | J47: 18653.65259 | K47: 759.6559399 | L47: 43341.46156 | M47: 3 | N47: NON_DUR | S47: NON_DUR | T47: 0 | U47: 3 | V47: -22343.49408 | W47: 66.87610659 | X47: 158.026742 | Y47: 159.7673339 | Z47: 8.672272584 | AA47: 200.8220226 | AB47: 3 | AC47: NON_DUR
D48: BOURGS | E48: 176119.2694 | F48: L | G48: -78567.94348 | H48: 17.85123189 | I48: 130.8709568 | J48: 641.8627332 | K48: -865.9502269 | L48: 3337.273201 | M48: L | N48: BOURGS | S48: BOURGS | T48: -101813.3073 | U48: L | V48: -20880.87302 | W48: 66.73501818 | X48: 200.7813706 | Y48: 299.6539523 | Z48: 267.5592405 | AA48: 67.21796396 | AB48: L | AC48: BOURGS
D49: PRLTRT | E49: 76658.97859 | F49: N | G49: -36459.42768 | H49: 15.97269368 | I49: 83.32970625 | J49: 554.3186888 | K49: 0 | L49: -8748.026743 | M49: N | N49: PRLTRT | S49: PRLTRT | T49: -11621.78025 | U49: N | V49: -7406.582233 | W49: 16.70184179 | X49: 100.4249699 | Y49: 99.79642243 | Z49: 0 | AA49: 2262.417426 | AB49: N | AC49: PRLTRT
G50: 0 | H50: 1 | I50: 2 | J50: 3 | K50: L | L50: N | V50: 0 | W50: 1 | X50: 2 | Y50: 3 | Z50: L | AA50: N
G52: VALUE | H52: CAPITAL | I52: GENERAL | J52: NON_DUR | K52: BOURGS | L52: PRLTRT | V52: VALUE | W52: CAPITAL | X52: GENERAL | Y52: NON_DUR | Z52: BOURGS | AA52: PRLTRT

Sheet Econ 3
O4: TIME | P4: =Global!N3 -> 50.01
O6: SIMULATE UNTIL | P6: =Global!N5 -> 100
P7: (YRS)
D9: INTEREST | E9: 0.1
D10: RATE | E10: 0.09750254085 | F10: -i | I10: Economy #3:
R11: State Variables:
D12: INVESTMENT | E12: 5.903860995
D13: TERM | E13: (YRS)
G14: VALUE | H14: CAPITAL | I14: GENERAL | J14: NON_DUR | K14: BOURGS | L14: PRLTRT | R14: Investment | T14: Saving | V14: VALUE | W14: CAPITAL | X14: GENERAL | Y14: NON_DUR | Z14: BOURGS | AA14: PRLTRT
B15: Physical I/O:
G16: 0.005018796731 | H16: 1.485976553 | I16: -20.25056426 | J16: -141.4537485 | K16: 4.519997379 | L16: 149.3031699 | M16: + XPT / - MPT | V16: 0.001828158321 | W16: 4.953255163 | X16: -20.25055962 | Y16: -47.15124726 | Z16: 1.506665991 | AA16: 49.76768516
E17: r | F17: R | G17: 0 | H17: 1 | I17: 2 | J17: 3 | K17: L | L17: N | R17: k | T17: g | U17: A | V17: 0 | W17: 1 | X17: 2 | Y17: 3 | Z17: L | AA17: N
D18: ( - ) OUTPUT | E18: -0.009845187902 | F18: 0 | G18: 302657.0544 | H18: -100.041654 | I18: -743.4401502 | J18: -2917.827893 | K18: -876 | L18: -8766 | M18: 0 | N18: OUTPUT ( - ) | R18: -427617.8977 | T18: 0 | U18: 0 | V18: 100885.6847 | W18: -333.4718446 | X18: -743.4400079 | Y18: -972.6092418 | Z18: -292 | AA18: -2922 | AB18: 0
D19: CAPITAL | E19: -16654.85485 | F19: 1 | G19: -84764.80893 | H19: 29.95817818 | I19: 209.3164257 | J19: 768.1718078 | K19: 19.8157793 | L19: 591.6723271 | M19: 1 | N19: CAPITAL | R19: 170816.5184 | T19: 0 | U19: 1 | V19: -28254.93713 | W19: 99.8604533 | X19: 209.3163862 | Y19: 256.0572626 | Z19: 6.60526195 | AA19: 197.2241523 | AB19: 1 | AC19: CAPITAL
D20: GENERAL | E20: -13976.41485 | F20: 2 | G20: -72010.36045 | H20: 24.80734655 | I20: 106.5591764 | J20: 666.5053715 | K20: 29.58067565 | L20: 578.2317995 | M20: 2 | N20: GENERAL | R20: 143345.7166 | T20: 0 | U20: 2 | V20: -24003.45404 | W20: 82.69104087 | X20: 106.5592119 | Y20: 222.1684487 | Z20: 9.860225911 | AA20: 192.7439426 | AB20: 2 | AC20: GENERAL
D21: NON_DUR | E21: -11062.09293 | F21: 3 | G21: -61212.61794 | H21: 18.81470448 | I21: 147.0955826 | J21: 428.5163846 | K21: 23.93135717 | L21: 485.8252622 | M21: 3 | N21: NON_DUR | R21: 113455.6628 | T21: 0 | U21: 3 | V21: -20404.20631 | W21: 62.71561406 | X21: 147.0955526 | Y21: 142.8388019 | Z21: 7.977119717 | AA21: 161.9417627 | AB21: 3 | AC21: NON_DUR
D22: BOURGS | E22: 37384.51024 | F22: L | G22: -62492.51788 | H22: 19.98030691 | I22: 200.4290333 | J22: 897.3243033 | K22: 798.1521905 | L22: 197.8912025 | M22: L | N22: BOURGS | R22: 0 | T22: -100507.4949 | U22: L | V22: -20830.8385 | W22: 66.60099057 | X22: 200.4289723 | Y22: 299.1080629 | Z22: 266.0507264 | AA22: 65.96381988 | AB22: L | AC22: BOURGS
D23: PRLTRT | E23: 4308.86224 | F23: N | G23: -22176.75417 | H23: 4.995141323 | I23: 100.2904965 | J23: 298.7637744 | K23: 0 | L23: 6763.076239 | M23: N | N23: PRLTRT | R23: 0 | T23: -11584.61588 | U23: N | V23: -7392.25054 | W23: 16.65049066 | X23: 100.2904445 | Y23: 99.58791302 | Z23: 0 | AA23: 2254.358637 | AB23: N | AC23: PRLTRT
G24: 0 | H24: 1 | I24: 2 | J24: 3 | K24: L | L24: N | V24: 0 | W24: 1 | X24: 2 | Y24: 3 | Z24: L | AA24: N
G26: VALUE | H26: CAPITAL | I26: GENERAL | J26: NON_DUR | K26: BOURGS | L26: PRLTRT | V26: VALUE | W26: CAPITAL | X26: GENERAL | Y26: NON_DUR | Z26: BOURGS | AA26: PRLTRT
B28: Prices & Values: | G28: 2 | H28: 1869.040976 | I28: 213.8159976 | J28: 45.88314043 | K28: 1118.593743 | L28: 20
G29: 1.961663009 | H29: 1828.588858 | I29: 208.8085501 | J29: 44.94466144 | K29: 1094.506791 | L29: 19.56866663 | M29: < Prices | V29: 0.002004506363 | W29: 4.953267782 | X29: -20.25055514 | Y29: -47.15124495 | Z29: 1.506666202 | AA29: 49.76764385
E30: c | G30: 0 | H30: 1 | I30: 2 | J30: 3 | K30: L | L30: N | U30: B | V30: 0 | W30: 1 | X30: 2 | Y30: 3 | Z30: L | AA30: N
D31: MCP | E31: 1 | F31: 0 | G31: 1.961662077 | H31: 1828.588479 | I31: 208.8085026 | J31: 44.94465177 | K31: 0 | L31: 0 | M31: 0 | N31: MCP | T31: 0 | U31: 0 | V31: 100885.6846 | W31: -333.471222 | X31: -743.4398412 | Y31: -972.6091815 | Z31: -292 | AA31: -2922 | AB31: 0
D32: CAPITAL | E32: 1.000000003 | F32: 1 | G32: 1.961663105 | H32: 1828.588983 | I32: 208.8085585 | J32: 44.9446623 | K32: 1094.506683 | L32: 19.56866685 | M32: 1 | N32: CAPITAL | S32: CAPITAL | T32: 0 | U32: 1 | V32: -28254.93802 | W32: 99.86019217 | X32: 209.3163401 | Y32: 256.0572553 | Z32: 6.605264308 | AA32: 197.2241989 | AB32: 1 | AC32: CAPITAL
D33: GENERAL | E33: 0.9999999808 | F33: 2 | G33: 1.961663065 | H33: 1828.588933 | I33: 208.8085336 | J33: 44.94466161 | K33: 1094.506752 | L33: 19.56866709 | M33: 2 | N33: GENERAL | S33: GENERAL | T33: 0 | U33: 2 | V33: -24003.45465 | W33: 82.69082689 | X33: 106.5592535 | Y33: 222.1684396 | Z33: 9.86022666 | AA33: 192.7439527 | AB33: 2 | AC33: GENERAL
D34: NON_DUR | E34: 0.9999999766 | F34: 3 | G34: 1.961663058 | H34: 1828.588876 | I34: 208.8085524 | J34: 44.94465915 | K34: 1094.506743 | L34: 19.56866698 | M34: 3 | N34: NON_DUR | S34: NON_DUR | T34: 0 | U34: 3 | V34: -20404.20667 | W34: 62.71547835 | X34: 147.095518 | Y34: 142.8388095 | Z34: 7.97712043 | AA34: 161.9417721 | AB34: 3 | AC34: NON_DUR
D35: BOURGS | E35: 1.000000225 | F35: L | G35: 1.961665984 | H35: 1828.590096 | I35: 208.8088719 | J35: 44.94475041 | K35: 1094.504292 | L35: 19.56864499 | M35: L | N35: BOURGS | S35: BOURGS | T35: -100507.289 | U35: L | V35: -20830.83765 | W35: 66.60093029 | X35: 200.428901 | Y35: 299.1080217 | Z35: 266.0507224 | AA35: 65.96391238 | AB35: L | AC35: BOURGS
D36: PRLTRT | E36: 1.00000212 | F36: N | G36: 1.961669741 | H36: 1828.591645 | I36: 208.8093103 | J36: 44.944785 | K36: 0 | L36: 19.56867029 | M36: N | N36: PRLTRT | S36: PRLTRT | T36: -11584.53115 | U36: N | V36: -7392.249625 | W36: 16.6505265 | X36: 100.2903838 | Y36: 99.58790031 | Z36: 0 | AA36: 2254.35852 | AB36: N | AC36: PRLTRT
G37: 0 | H37: 1 | I37: 2 | J37: 3 | K37: L | L37: N | V37: 0 | W37: 1 | X37: 2 | Y37: 3 | Z37: L | AA37: N
G39: VALUE | H39: CAPITAL | I39: GENERAL | J39: NON_DUR | K39: BOURGS | L39: PRLTRT | V39: VALUE | W39: CAPITAL | X39: GENERAL | Y39: NON_DUR | Z39: BOURGS | AA39: PRLTRT
B40: Utility Parameters:
G42: 9073826.866 | H42: -2265.721962 | I42: -19015.50142 | J42: -86285.35269 | K42: -2608.509025 | L42: -150905.5548 | V42: 0.002199300736 | W42: 4.953330609 | X42: -20.25055115 | Y42: -47.15124265 | Z42: 1.506666422 | AA42: 49.76760039
E43: u | F43: U | G43: 0 | H43: 1 | I43: 2 | J43: 3 | K43: L | L43: N | U43: C | V43: 0 | W43: 1 | X43: 2 | Y43: 3 | Z43: L | AA43: N
E44: -17799790.52 | F44: 0 | G44: -1736003.845 | H44: 709.0221284 | I44: 5283.704347 | J44: 22000 | K44: 876 | L44: 8766 | M44: 0 | T44: 0 | U44: 0 | V44: 100885.6845 | W44: -333.4700677 | X44: -743.4396477 | Y44: -972.6091181 | Z44: -292 | AA44: -2922 | AB44: 0
D45: CAPITAL | E45: 6698103.1 | F45: 1 | G45: -2753578.525 | H45: 579.0221284 | I45: 5123.677045 | J45: 24008.40059 | K45: 997.6057642 | L45: 56314.33399 | M45: 1 | N45: CAPITAL | S45: CAPITAL | T45: 0 | U45: 1 | V45: -28254.93895 | W45: 99.85970731 | X45: 209.3162867 | Y45: 256.0572477 | Z45: 6.605266779 | AA45: 197.2242478 | AB45: 1 | AC45: CAPITAL
D46: GENERAL | E46: 5702251.292 | F46: 2 | G46: -2344423.393 | H46: 493.6502202 | I46: 4433.704347 | J46: 20427.11809 | K46: 836.6047242 | L46: 47868.89871 | M46: 2 | N46: GENERAL | S46: GENERAL | T46: 0 | U46: 2 | V46: -24003.45529 | W46: 82.69042507 | X46: 106.5593019 | Y46: 222.1684301 | Z46: 9.860227446 | AA46: 192.7439634 | AB46: 2 | AC46: GENERAL
D47: NON_DUR | E47: 5156911.818 | F47: 3 | G47: -2124793.732 | H47: 450.2035597 | I47: 3960.215016 | J47: 18653.65259 | K47: 759.6559399 | L47: 43341.46156 | M47: 3 | N47: NON_DUR | S47: NON_DUR | T47: 0 | U47: 3 | V47: -20404.20705 | W47: 62.71519489 | X47: 147.0954787 | Y47: 142.8388175 | Z47: 7.977121181 | AA47: 161.9417822 | AB47: 3 | AC47: NON_DUR
D48: BOURGS | E48: 170150.2496 | F48: L | G48: -78567.94348 | H48: 17.85123189 | I48: 130.8709568 | J48: 641.8627332 | K48: -861.3574037 | L48: 3337.273201 | M48: L | N48: BOURGS | S48: BOURGS | T48: -100507.0062 | U48: L | V48: -20830.83675 | W48: 66.60081863 | X48: 200.4288182 | Y48: 299.1079785 | Z48: 266.0507182 | AA48: 65.96400934 | AB48: L | AC48: BOURGS
D49: PRLTRT | E49: 72374.05737 | F49: N | G49: -36459.42768 | H49: 15.97269368 | I49: 83.32970625 | J49: 554.3186888 | K49: 0 | L49: -8722.412633 | M49: N | N49: PRLTRT | S49: PRLTRT | T49: -11584.41498 | U49: N | V49: -7392.248665 | W49: 16.65059121 | X49: 100.2903133 | Y49: 99.58788699 | Z49: 0 | AA49: 2254.358397 | AB49: N | AC49: PRLTRT
G50: 0 | H50: 1 | I50: 2 | J50: 3 | K50: L | L50: N | V50: 0 | W50: 1 | X50: 2 | Y50: 3 | Z50: L | AA50: N
G52: VALUE | H52: CAPITAL | I52: GENERAL | J52: NON_DUR | K52: BOURGS | L52: PRLTRT | V52: VALUE | W52: CAPITAL | X52: GENERAL | Y52: NON_DUR | Z52: BOURGS | AA52: PRLTRT

Sheet Global
A1: i
N2: 50
M3: TIME | N3: 50.01
N4: =N2+N3 -> 100.01
M5: SIMULATE UNTIL | N5: 100
H8: Global Economy
B11: Supply: | F11: VALUE | G11: CAPITAL | H11: GENERAL | I11: NON_DUR | J11: BOURGS | K11: PRLTRT | R11: Balance: | V11: VALUE | W11: CAPITAL | X11: GENERAL | Y11: NON_DUR | Z11: BOURGS | AA11: PRLTRT
E12: S > | F12: 0 | G12: 1 | H12: 2 | I12: 3 | J12: L | K12: N | U12: S - D - X > | V12: 0 | W12: 1 | X12: 2 | Y12: 3 | Z12: L | AA12: N
D13: GLOBAL | E13: 0 | F13: -928657.4029 | G13: 300.124962 | H13: 2330.111324 | I13: 9359.217002 | J13: 227.3030866 | K13: 5975.444398 | L13: 0 | M13: GLOBAL | T13: GLOBAL | U13: 0 | V13: =F13-F20-F27 -> 7.961259225 | W13: -0.001681374022 | X13: -0.01472421412 | Y13: -0.06840727472 | Z13: -0.001274512968 | AA13: -0.1254568184 | AB13: 0 | AC13: GLOBAL
D14: ECONOMY 1 | E14: 1 | F14: -308548.1594 | G14: 100.041654 | H14: 743.4401502 | I14: 3220.694554 | J14: 76.13303093 | K14: 1993.774098 | L14: 1 | M14: ECONOMY 1 | T14: ECONOMY 1 | U14: 1 | V14: 2.645143277 | W14: -0.0005592444247 | X14: -0.004896083834 | Y14: -0.02273800693 | Z14: -0.0004228503321 | AA14: -0.04139638808 | AB14: 1 | AC14: ECONOMY 1
D15: ECONOMY 2 | E15: 2 | F15: -317452.1891 | G15: 100.041654 | H15: 843.2310234 | I15: 3220.694554 | J15: 73.32224618 | K15: 1978.746539 | L15: 2 | M15: ECONOMY 2 | T15: ECONOMY 2 | U15: 2 | V15: 2.721476312 | W15: -0.0005699963968 | X15: -0.005002289784 | Y15: -0.02330873062 | Z15: -0.0004405056699 | AA15: -0.0451429329 | AB15: 2 | AC15: ECONOMY 2
D16: ECONOMY 3 | E16: 3 | F16: -302657.0544 | G16: 100.041654 | H16: 743.4401502 | I16: 2917.827893 | J16: 77.84780951 | K16: 2002.923761 | L16: 3 | M16: ECONOMY 3 | T16: ECONOMY 3 | U16: 3 | V16: =F16-F23-F30 -> 2.594639636 | W16: -0.0005521332003 | X16: -0.004825840502 | Y16: -0.02236053717 | Z16: -0.0004111569661 | AA16: -0.03891749741 | AB16: 3 | AC16: ECONOMY 3
F17: 0 | G17: 1 | H17: 2 | I17: 3 | J17: L | K17: N | V17: 0 | W17: 1 | X17: 2 | Y17: 3 | Z17: L | AA17: N
B18: Demand: | F18: VALUE | G18: CAPITAL | H18: GENERAL | I18: NON_DUR | J18: BOURGS | K18: PRLTRT | R18: Market: | V18: VALUE | W18: CAPITAL | X18: GENERAL | Y18: NON_DUR | Z18: BOURGS | AA18: PRLTRT
E19: D > | F19: 0 | G19: 1 | H19: 2 | I19: 3 | J19: L | K19: N | U19: Mkt > | V19: 0 | W19: 1 | X19: 2 | Y19: 3 | Z19: L | AA19: N
D20: GLOBAL | E20: 0 | F20: -928665.3642 | G20: 300.1266433 | H20: 2330.126048 | I20: 9359.285409 | J20: 227.3043611 | K20: 5975.569855 | L20: 0 | M20: GLOBAL | T20: GLOBAL | U20: 0 | V20: 1.418811735e-10 | W20: 1.136868377e-13 | X20: -8.526512829e-13 | Y20: 1.080024958e-12 | Z20: 0 | AA20: 0 | AB20: 0 | AC20: GLOBAL
D21: ECONOMY 1 | E21: 1 | F21: -308550.8052 | G21: 99.82558896 | H21: 774.811639 | I21: 3110.948321 | J21: 75.41368899 | K21: 1971.730288 | L21: 1 | M21: ECONOMY 1 | T21: ECONOMY 1 | U21: 1 | V21: -4.729372449e-11 | W21: -3.7658765e-13 | X21: -5.684341886e-13 | Y21: 7.958078641e-13 | Z21: 0 | AA21: 0 | AB21: 1 | AC21: ECONOMY 1
D22: ECONOMY 2 | E22: 2 | F22: -317454.9049 | G22: 101.7448248 | H22: 791.6188688 | I22: 3189.033086 | J22: 78.56244885 | K22: 2150.180058 | L22: 2 | M22: ECONOMY 2 | T22: ECONOMY 2 | U22: 2 | V22: 1.455191523e-11 | W22: 1.278976924e-13 | X22: 1.705302566e-13 | Y22: 9.663381206e-13 | Z22: 0 | AA22: 0 | AB22: 2 | AC22: ECONOMY 2
D23: ECONOMY 3 | E23: 3 | F23: -302659.654 | G23: 98.55622957 | H23: 763.6955403 | I23: 3059.304002 | J23: 73.32822328 | K23: 1853.659509 | L23: 3 | M23: ECONOMY 3 | T23: ECONOMY 3 | U23: 3 | V23: 1.746229827e-10 | W23: 3.623767952e-13 | X23: -4.547473509e-13 | Y23: -6.821210263e-13 | Z23: 0 | AA23: 0 | AB23: 3 | AC23: ECONOMY 3
F24: 0 | G24: 1 | H24: 2 | I24: 3 | J24: L | K24: N | V24: 0 | W24: 1 | X24: 2 | Y24: 3 | Z24: L | AA24: N
B25: Exports: | F25: VALUE | G25: CAPITAL | H25: GENERAL | I25: NON_DUR | J25: BOURGS | K25: PRLTRT | V25: VALUE | W25: CAPITAL | X25: GENERAL | Y25: NON_DUR | Z25: BOURGS | AA25: PRLTRT
E26: X > | F26: 0 | G26: 1 | H26: 2 | I26: 3 | J26: L | K26: N | R26: Z: | U26: Z > | V26: 0 | W26: 1 | X26: 2 | Y26: 3 | Z26: L | AA26: N
D27: GLOBAL | E27: 0 | F27: 0 | G27: 0 | H27: 0 | I27: 0 | J27: 0 | K27: 0 | L27: 0 | M27: GLOBAL | T27: GLOBAL | U27: 0 | AB27: 0 | AC27: GLOBAL
D28: ECONOMY 1 | E28: 1 | F28: 0.0006548670181 | G28: 0.2166242735 | H28: -31.36659265 | I28: 109.768971 | J28: 0.7197647861 | K28: 22.08520567 | L28: 1 | M28: ECONOMY 1 | T28: ECONOMY 1 | U28: 1 | V28: ='Econ 1'!G44 -> -1743038.862 | W28: ='Econ 1'!H44 -> 709.0221284 | X28: ='Econ 1'!I44 -> 5283.704347 | Y28: ='Econ 1'!J44 -> 22353.65259 | Z28: ='Econ 1'!K48 -> -863.0977019 | AA28: ='Econ 1'!L49 -> -8732.106469 | AB28: 1 | AC28: ECONOMY 1
D29: ECONOMY 2 | E29: 2 | F29: -0.005673663728 | G29: -1.702600826 | H29: 51.6171569 | I29: 31.68477748 | J29: -5.239762165 | K29: -171.3883755 | L29: 2 | M29: ECONOMY 2 | T29: ECONOMY 2 | U29: 2 | V29: ='Econ 2'!G44 -> -1753667.538 | W29: ='Econ 2'!H44 -> 709.0221284 | X29: ='Econ 2'!I44 -> 5400 | Y29: ='Econ 2'!J44 -> 22353.65259 | Z29: ='Econ 2'!K48 -> -865.9502269 | AA29: ='Econ 2'!L49 -> -8748.026743 | AB29: 2 | AC29: ECONOMY 2
D30: ECONOMY 3 | E30: 3 | F30: 0.005018796731 | G30: 1.485976553 | H30: -20.25056426 | I30: -141.4537485 | J30: 4.519997379 | K30: 149.3031699 | L30: 3 | M30: ECONOMY 3 | T30: ECONOMY 3 | U30: 3 | V30: ='Econ 3'!G44 -> -1736003.845 | W30: ='Econ 3'!H44 -> 709.0221284 | X30: ='Econ 3'!I44 -> 5283.704347 | Y30: ='Econ 3'!J44 -> 22000 | Z30: ='Econ 3'!K48 -> -861.3574037 | AA30: ='Econ 3'!L49 -> -8722.412633 | AB30: 3 | AC30: ECONOMY 3
F31: 0 | G31: 1 | H31: 2 | I31: 3 | J31: L | K31: N | V31: 0 | W31: 1 | X31: 2 | Y31: 3 | Z31: L | AA31: N
B32: Prices: | F32: VALUE | G32: CAPITAL | H32: GENERAL | I32: NON_DUR | J32: BOURGS | K32: PRLTRT | V32: VALUE | W32: CAPITAL | X32: GENERAL | Y32: NON_DUR | Z32: BOURGS | AA32: PRLTRT
E33: P > | F33: 0 | G33: 1 | H33: 2 | I33: 3 | J33: L | K33: N | Q33: Turnover Fractions: | U33: V > | V33: 0 | W33: 1 | X33: 2 | Y33: 3 | Z33: L | AA33: N
D34: GLOBAL | E34: 0 | F34: 1 | G34: 932.1625831 | H34: 106.444659 | I34: 22.91150989 | J34: 557.9484273 | K34: 9.975549593 | L34: 0 | M34: GLOBAL | V34: 1 | W34: 0.1 | X34: 0.3333333333 | Y34: 1 | Z34: 1 | AA34: 1
D35: ECONOMY 1 | E35: 1 | F35: 2.020175747 | G35: 1883.132243 | H35: 215.0369185 | I35: 46.28527661 | J35: 1127.153881 | K35: 20.15236335 | L35: 1 | M35: ECONOMY 1 | V35: 0 | W35: 1 | X35: 2 | Y35: 3 | Z35: L | AA35: N
D36: ECONOMY 2 | E36: 2 | F36: 2.092294076 | G36: 1950.35825 | H36: 222.7135294 | I36: 47.93761641 | J36: 1167.392189 | K36: 20.87178332 | L36: 2 | M36: ECONOMY 2 | V36: VALUE | W36: CAPITAL | X36: GENERAL | Y36: NON_DUR | Z36: BOURGS | AA36: PRLTRT
D37: ECONOMY 3 | E37: 3 | F37: 1.961663009 | G37: 1828.588858 | H37: 208.8085501 | I37: 44.94466144 | J37: 1094.506791 | K37: 19.56866663 | L37: 3 | M37: ECONOMY 3
F38: 0 | G38: 1 | H38: 2 | I38: 3 | J38: L | K38: N
F39: VALUE | G39: CAPITAL | H39: GENERAL | I39: NON_DUR | J39: BOURGS | K39: PRLTRT

Sheet Financial
N2: 5
P3: TIME | Q3: =Global!N3 -> 50.01
P5: SIMULATE UNTIL | Q5: =Global!N5 -> 100
Q6: (YRS)
I7: Financial Stocks and Flows: | X7: Financial Discriminants:
I8: (IN NATIVE CURRENCY UNITS & UNITS PER YEAR) | X8: (IN NATIVE CURRENCY UNITS PER YEAR)
B11: Economy #1:
E12: CAPITAL | H12: DIVIDENDS | K12: NET CASH | M12: MATURING | O12: SAVINGS | AA12: u + e
B13: P01 > | C13: 2.020175747 | E13: ACCOUNTS | G13: GENERATED | I13: RECEIVED | K13: FLOWS | M13: INVESTMENTS | O13: BALANCES | U13: b | W13: q | Y13: z | AA13: h | AC13: Q | AE13: Q
E14: -452125.9622 | F14: 0 | G14: =-SUM(G15:G19) -> 45202.63519 | H14: 0 | I14: =-SUM(I15:I19) -> -45202.63519 | J14: 0 | K14: 0.001322946424 | L14: 0 | M14: 0 | N14: 0 | O14: 338013.3091 | V14: 0 | X14: 0 | Z14: 0 | AA14: 0 | AB14: 0 | AD14: 0 | AE14: 0
B15: -i > | C15: 0.09997796948 | D15: CAPITAL | E15: 171556.1308 | F15: 1 | G15: -17151.83343 | H15: 1 | I15: 0 | J15: 1 | K15: 17151.65343 | L15: 1 | M15: 0 | N15: 1 | O15: 0 | P15: CAPITAL | T15: CAPITAL | U15: 1146790.545 | V15: 1 | W15: 1146790.729 | X15: 1 | Y15: 1146790.767 | Z15: 1 | AA15: 1146790.525 | AB15: 1 | AC15: =Utility!D38/GPE!F$26 -> 569143.3399 | AD15: 1 | AE15: 567668.7933 | AF15: CAPITAL
D16: GENERAL | E16: 143966.3839 | F16: 2 | G16: -14393.46659 | H16: 2 | I16: 0 | J16: 2 | K16: 14393.31796 | L16: 2 | M16: 0 | N16: 2 | O16: 0 | P16: GENERAL | T16: GENERAL | U16: 976324.212 | V16: 2 | W16: 976324.299 | X16: 2 | Y16: 976324.422 | Z16: 2 | AA16: 976324.219 | AB16: 2 | AC16: =Utility!D39/GPE!F$26 -> 484688.9871 | AD16: 2 | AE16: 483286.8133 | AF16: GENERAL
B17: Term > | C17: 6.75219135 | D17: NON_DUR | E17: 136603.4475 | F17: 3 | G17: -13657.33517 | H17: 3 | I17: 0 | J17: 3 | K17: 13657.19734 | L17: 3 | M17: 0 | N17: 3 | O17: 0 | P17: NON_DUR | T17: NON_DUR | U17: 885574.0223 | V17: 3 | W17: 885573.9491 | X17: 3 | Y17: 885574.255 | Z17: 3 | AA17: 885574.0705 | AB17: 3 | AC17: =Utility!D40/GPE!F$26 -> 439414.6156 | AD17: 3 | AE17: 438364.8058 | AF17: NON_DUR
D18: BOURGS | E18: 0 | F18: L | G18: 0 | H18: L | I18: 40547.8238 | J18: L | K18: -40547.49634 | L18: L | M18: -44904.67301 | N18: L | O18: -303205.864 | P18: BOURGS | T18: BOURGS | U18: 71270.59744 | V18: L | W18: 71270.40192 | X18: L | Y18: 71270.76578 | Z18: L | AA18: 71270.58441 | AB18: L | AC18: =Utility!D41/GPE!F$26 -> 35372.73201 | AD18: L | AE18: 35279.30777 | AF18: BOURGS
B19: -k/g > | C19: =-E14/O14 -> 1.337598107 | D19: PRLTRT | E19: 0 | F19: N | G19: 0 | H19: N | I19: 4654.811394 | J19: N | K19: -4654.673706 | L19: N | M19: -5154.927801 | N19: N | O19: -34807.4451 | P19: PRLTRT | T19: PRLTRT | U19: 39496.2364 | V19: N | W19: 39496.01246 | X19: N | Y19: 39496.22519 | Z19: N | AA19: 39496.14891 | AB19: N | AC19: =Utility!D42/GPE!F$26 -> 19599.40102 | AD19: N | AE19: 19550.78043 | AF19: PRLTRT
B20: leverage | E20: k, $ | G20: e (-), $/yr | I20: e (+), $/yr | K20: -r, $/yr | M20: g/T, $/yr | O20: g, $ | U20: $/year | W20: $/year | Y20: $/year | AA20: $/year | AC20: G/year | AE20: G/year
B22: Economy #2:
E23: CAPITAL | H23: DIVIDENDS | K23: NET CASH | M23: MATURING | O23: SAVINGS | AA23: u + e
B24: P02 > | C24: 2.092294076 | E24: ACCOUNTS | G24: GENERATED | I24: RECEIVED | K24: FLOWS | M24: INVESTMENTS | O24: BALANCES | U24: b | W24: q | Y24: z | AA24: h | AC24: Q | AE24: Q
E25: -486645.3317 | F25: 0 | G25: =-SUM(G26:G30) -> 50662.05769 | H25: 0 | I25: =-SUM(I26:I30) -> -50662.05769 | J25: 0 | K25: -0.01187097298 | L25: 0 | M25: 0 | N25: 0 | O25: 340306.8153 | V25: 0 | X25: 0 | Z25: 0 | AA25: 0 | AB25: 0 | AD25: 0 | AE25: 0
B26: -i > | C26: 0.1041046834 | D26: CAPITAL | E26: 170637.2601 | F26: 1 | G26: -17764.13776 | H26: 1 | I26: 0 | J26: 1 | K26: 17763.97351 | L26: 1 | M26: 0 | N26: 1 | O26: 0 | P26: CAPITAL | T26: CAPITAL | U26: 1187729.889 | V26: 1 | W26: 1187730.053 | X26: 1 | Y26: 1187730.093 | Z26: 1 | AA26: 1187729.842 | AB26: 1 | AC26: =AC15 -> 569143.3399 | AD26: 1 | AE26: 567668.7933 | AF26: CAPITAL
D27: GENERAL | E27: 180136.2856 | F27: 2 | G27: -18753.0308 | H27: 2 | I27: 0 | J27: 2 | K27: 18752.86312 | L27: 2 | M27: 0 | N27: 2 | O27: 0 | P27: GENERAL | T27: GENERAL | U27: 1014853.818 | V27: 2 | W27: 1014853.899 | X27: 2 | Y27: 1014854.101 | Z27: 2 | AA27: 1014853.867 | AB27: 2 | AC27: =AC16 -> 484688.9871 | AD27: 2 | AE27: 485043.6231 | AF27: GENERAL
B28: Term > | C28: 7.739754159 | D28: NON_DUR | E28: 135871.786 | F28: 3 | G28: -14144.88913 | H28: 3 | I28: 0 | J28: 3 | K28: 14144.76371 | L28: 3 | M28: 0 | N28: 3 | O28: 0 | P28: NON_DUR | T28: NON_DUR | U28: 917188.1778 | V28: 3 | W28: 917188.0862 | X28: 3 | Y28: 917188.4031 | Z28: 3 | AA28: 917188.2119 | AB28: 3 | AC28: =AC17 -> 439414.6156 | AD28: 3 | AE28: 438364.8058 | AF28: NON_DUR
D29: BOURGS | E29: 0 | F29: L | G29: 0 | H29: L | I29: 45471.52468 | J29: L | K29: -45471.19813 | L29: L | M29: -39463.77505 | N29: L | O29: -305441.0028 | P29: BOURGS | T29: BOURGS | U29: 73863.60709 | V29: L | W29: 73863.41367 | X29: L | Y29: 73863.79074 | Z29: L | AA29: 73863.59804 | AB29: L | AC29: =AC18 -> 35372.73201 | AD29: L | AE29: 35302.59657 | AF29: BOURGS
B30: -k/g > | C30: =-E25/O25 -> 1.430019352 | D30: PRLTRT | E30: 0 | F30: N | G30: 0 | H30: N | I30: 5190.533009 | J30: N | K30: -5190.390344 | L30: N | M30: -4504.708802 | N30: N | O30: -34865.81254 | P30: PRLTRT | T30: PRLTRT | U30: 40924.8517 | V30: N | W30: 40924.61519 | X30: N | Y30: 40924.83496 | Z30: N | AA30: 40924.7558 | AB30: N | AC30: =AC19 -> 19599.40102 | AD30: N | AE30: 19559.68603 | AF30: PRLTRT
B31: leverage | E31: k, ¥ | G31: e (-), ¥/yr | I31: e (+), ¥/yr | K31: -r, ¥/yr | M31: g/T, ¥/yr | O31: g, ¥ | U31: ¥/year | W31: ¥/year | Y31: ¥/year | AA31: ¥/year | AC31: G/year | AE31: G/year
B33: Economy #3:
E34: CAPITAL | H34: DIVIDENDS | K34: NET CASH | M34: MATURING | O34: SAVINGS | AA34: u + e
B35: P03 > | C35: 1.961663009 | E35: ACCOUNTS | G35: GENERATED | I35: RECEIVED | K35: FLOWS | M35: INVESTMENTS | O35: BALANCES | U35: b | W35: q | Y35: z | AA35: h | AC35: Q | AE35: Q
E36: -427617.8977 | F36: 0 | G36: =-SUM(G37:G41) -> 41693.83109 | H36: 0 | I36: =-SUM(I37:I41) -> -41693.83109 | J36: 0 | K36: 0.009845187902 | L36: 0 | M36: 0 | N36: 0 | O36: 336275.3521 | V36: 0 | X36: 0 | Z36: 0 | AA36: 0 | AB36: 0 | AD36: 0 | AE36: 0
B37: -i > | C37: 0.09750254085 | D37: CAPITAL | E37: 170816.5184 | F37: 1 | G37: -16655.04438 | H37: 1 | I37: 0 | J37: 1 | K37: 16654.85485 | L37: 1 | M37: 0 | N37: 1 | O37: 0 | P37: CAPITAL | T37: CAPITAL | U37: 1113574.679 | V37: 1 | W37: 1113574.873 | X37: 1 | Y37: 1113574.91 | Z37: 1 | AA37: 1113574.676 | AB37: 1 | AC37: =AC26 -> 569143.3399 | AD37: 1 | AE37: 567668.7933 | AF37: CAPITAL
D38: GENERAL | E38: 143345.7166 | F38: 2 | G38: -13976.57143 | H38: 2 | I38: 0 | J38: 2 | K38: 13976.41485 | L38: 2 | M38: 0 | N38: 2 | O38: 0 | P38: GENERAL | T38: GENERAL | U38: 948045.7686 | V38: 2 | W38: 948045.8645 | X38: 2 | Y38: 948045.9839 | Z38: 2 | AA38: 948045.7868 | AB38: 2 | AC38: =AC27 -> 484688.9871 | AD38: 2 | AE38: 483286.8133 | AF38: GENERAL
B39: Term > | C39: 5.903860995 | D39: NON_DUR | E39: 113455.6628 | F39: 3 | G39: -11062.21528 | H39: 3 | I39: 0 | J39: 3 | K39: 11062.09293 | L39: 3 | M39: 0 | N39: 3 | O39: 0 | P39: NON_DUR | T39: NON_DUR | U39: 857641.5804 | V39: 3 | W39: 857641.503 | X39: 3 | Y39: 857641.7648 | Z39: 3 | AA39: 857641.6004 | AB39: 3 | AC39: =AC28 -> 439414.6156 | AD39: 3 | AE39: 437201.2415 | AF39: NON_DUR
D40: BOURGS | E40: 0 | F40: L | G40: 0 | H40: L | I40: 37384.8352 | J40: L | K40: -37384.51024 | L40: L | M40: -51071.83492 | N40: L | O40: -301521.79 | P40: BOURGS | T40: BOURGS | U40: 69178.37719 | V40: L | W40: 69178.18182 | X40: L | Y40: 69178.53502 | Z40: L | AA40: 69178.3616 | AB40: L | AC40: =AC29 -> 35372.73201 | AD40: L | AE40: 35265.06922 | AF40: BOURGS
B41: -k/g > | C41: =-E36/O36 -> 1.271630214 | D41: PRLTRT | E41: 0 | F41: N | G41: 0 | H41: N | I41: 4308.995886 | J41: N | K41: -4308.86224 | L41: N | M41: -5886.528018 | N41: N | O41: -34753.56201 | P41: PRLTRT | T41: PRLTRT | U41: 38341.6079 | V41: N | W41: 38341.39372 | X41: N | Y41: 38341.60063 | Z41: N | AA41: 38341.52663 | AB41: N | AC41: =AC30 -> 19599.40102 | AD41: N | AE41: 19545.35185 | AF41: PRLTRT
B42: leverage | E42: k, € | G42: e (-), €/yr | I42: e (+), €/yr | K42: -r, €/yr | M42: g/T, €/yr | O42: g, € | U42: €/year | W42: €/year | Y42: €/year | AA42: €/year | AC42: G/year | AE42: G/year
